Cogmind - Beta 10.2 @@@ ROGUE MODE // 2020.12.27 @ 15:52:14 Player: SureStep Result: Destroyed by G-34 Mercenary with Small Laser Performance ------------- Evolutions (1) 500 Regions Visited (3) 600 Robots Destroyed (58) 290 Value Destroyed (1164) 1164 Prototype IDs (10) 200 Alien Tech Used (0) 0 Bonus (48) 48 TOTAL SCORE: 2802 Bonus ------- High Alert Combat Kills 48 Cogmind --------- Core Integrity 0/400 Matter 285/300 Energy 428/580 System Corruption 5% Temperature Cool (20) Movement Flying (102) Ox1 Location -9/Materials Parts ------- > --- POWER (1) -------- Cooled Ion Engine > --- PROPULSION (3) --- Improved Flight Unit Improved Flight Unit > --- UTILITY (3) ------ Small Storage Unit Compact Battery Weight Redist. System > --- WEAPON (2) ------- Light EM Pulse Cannon Light EM Pulse Cannon > --- INVENTORY (6) ---- Cooled Ion Engine Cooled Ion Engine Heat Sink Light EM Pulse Cannon Light EM Pulse Cannon Mini Grenade Launcher Peak State ------------ > --- POWER ------------ Cooled Ion Engine > --- PROPULSION ------- Improved Flight Unit Improved Flight Unit Improved Flight Unit > --- UTILITY ---------- Heat Sink Small Storage Unit Weight Redist. System > --- WEAPON ----------- Particle Cannon Mini Grenade Launcher > --- INVENTORY -------- Cooled Ion Engine Cooled Ion Engine Large Battery Particle Cannon Mini Grenade Launcher [Rating: 21] Favorites ----------- Power Ion Engine Engine Ion Engine Propulsion Improved Flight Unit Wheel Wheel Flight Unit Improved Flight Unit Utility Small Storage Unit Device Weight Redist. System Storage Small Storage Unit Processor Transport Network Coupler Weapon Particle Cannon Energy Gun Improved EM Shotgun Energy Cannon Particle Cannon Launcher Rocket Launcher Build | -11 -10 -10 -9 ------- Run | Scr Mat Min Mat Slots Evolved 2 | . . . 2 Power . | . . . . Propulsion 1 | . . . 1 Utility 1 | . . . 1 Weapon . | . . . . Parts Attached 46 | 7 10 2 27 Power 5 | . 2 . 3 Engine 5 | . 2 . 3 Core . | . . . . Reactor . | . . . . Propulsion 10 | 4 . 1 5 Treads . | . . . . Leg . | . . . . Wheel 6 | 4 . 1 1 Hover . | . . . . Flight 4 | . . . 4 Utility 9 | 1 1 . 7 Device 4 | . 1 . 3 Storage 4 | 1 . . 3 Processor 1 | . . . 1 Hackware . | . . . . Protection . | . . . . Artifact . | . . . . Weapon 22 | 2 7 1 12 Energy Gun 5 | 2 . . 3 Energy Cannon 13 | . 7 . 6 Ballistic Gun . | . . . . Ballistic Cannon . | . . . . Launcher 4 | . . 1 3 Special Weapon . | . . . . Impact Weapon . | . . . . Slashing Weapon . | . . . . Piercing Weapon . | . . . . Special Melee Weapon . | . . . . Unidentified Prototypes 3 | . . . 3 Parts Lost 7 | . . . 7 Power . | . . . . Propulsion 3 | . . . 3 Utility . | . . . . Weapon 4 | . . . 4 Highest Loss Streak 2 | . . . 2 Average Slot Usage (%) 93 | . 89 100 94 Engine 11 | . 14 14 11 Wheel 11 | . 28 28 4 Flight 17 | . . . 25 Device 11 | . 5 14 13 Storage 16 | . 14 14 17 Processor 1 | . . . 1 Energy Gun 2 | . . . 2 Energy Cannon 15 | . 25 24 10 Launcher 5 | . . 3 8 Naked Turns . | . . . . Heaviest Build 23 | 8 18 18 23 Greatest Support 30 | 26 20 20 30 Greatest Overweight (x) 2 | 1 . . 2 Average Overweight (x) . | . . . . Largest Inventory Capacity 6 | 6 6 6 6 Average Capacity 5 | 5 6 6 6 Most Carried 6 | 4 4 5 6 Average Carried 3 | 1 2 3 4 Final Capacity 6 | 6 6 6 6 Final Carried 6 | 3 3 4 6 Class Distribution -------------------- 44% | Sprinter 39% | Mutant 16% | Scavenger-Mutant Dominant Class ---------------- Mutant | -10/Materials Scavenger-Mutant | -10/Mines Sprinter | -9/Materials Resources | -11 -10 -10 -9 ----------- Run | Scr Mat Min Mat Matter Collected 1144 | 270 99 16 759 Remotely . | . . . . Salvage Created 1680 | 117 78 20 1465 Parts 104 | 3 6 2 93 Haulers Intercepted 6 | . . . 6 Recyclers Shooed 2 | . 1 . 1 Parts Field Recycled . | . . . . Retrieved Matter . | . . . . Parts Self-Destructed . | . . . . Prevented . | . . . . Kills | -11 -10 -10 -9 ------- Run | Scr Mat Min Mat Combat Hostiles Destroyed 32 | . 4 . 28 Cannons 12 | . 4 . 8 AOE 19 | . . . 19 Classes Destroyed 11 | 2 2 1 6 Worker 5 | . . 1 4 Builder 3 | . . . 3 Tunneler 1 | 1 . . . Hauler 6 | . . . 6 Recycler 4 | 1 . . 3 Operator 2 | . . . 2 Watcher 5 | . . . 5 Swarmer 10 | . 3 . 7 Grunt 13 | . 1 . 12 Brawler 2 | . . . 2 Sentry 7 | . . . 7 Best Kill Streak 12 | 2 3 1 12 Combat Bots Only 9 | . 3 . 9 Max Kills in Single Turn 3 | 1 1 1 3 Gunslinging . | . . . . Exploded 3 | . . . 3 Melee . | . . . . Uniques/NPCs Destroyed . | . . . . Combat | -11 -10 -10 -9 -------- Run | Scr Mat Min Mat Damage Taken 1392 | . 185 . 1207 Core 450 | . 49 . 401 Absorbed by Shields . | . . . . Core Remaining (%) 90 | 100 . 80 . Volleys Fired 107 | 2 14 1 90 Largest 2 | 2 2 2 2 Hottest 136 | 80 136 136 136 Shots Fired 166 | 4 27 2 133 Gun 19 | 4 . . 15 Cannon 101 | . 27 2 72 Launcher 46 | . . . 46 Special . | . . . . Kinetic . | . . . . Thermal 67 | . 27 2 38 Explosive 46 | . . . 46 Electromagnetic 53 | 4 . . 49 Robot Hit Streak 16 | 3 5 2 16 Robot Miss Streak 6 | . 3 . 6 Penetration Max . | . . . . Secondary Targets . | . . . . Shots Hit Robots 102 | 3 13 1 85 Core Hits 75 | 2 4 1 68 Critical Hits . | . . . . Critical Kills . | . . . . Critical Parts Destroyed . | . . . . Melee Attacks . | . . . . Impact . | . . . . Slashing . | . . . . Piercing . | . . . . Sneak Attacks . | . . . . Combat Hostiles . | . . . . Follow-up Attacks . | . . . . Damage Inflicted 3718 | 39 246 20 3413 Guns 269 | 39 . . 230 Cannons 1400 | . 246 20 1134 Explosions 2049 | . . . 2049 Melee . | . . . . Ramming . | . . . . Kinetic . | . . . . Thermal 960 | . 246 20 694 Explosive 1970 | . . . 1970 Electromagnetic 788 | 39 . . 749 Impact . | . . . . Slashing . | . . . . Piercing . | . . . . Highest Corruption 5 | . 3 3 5 Average Corruption 3 | . 2 3 3 Corruption Purged . | . . . . Effects 24 | . 3 2 19 Message Errors 9 | . 1 1 7 Matter Fused 6 | . 1 1 4 Heat Flow Errors 3 | . 1 . 2 Energy Discharges 1 | . . . 1 Data Loss (minor) 1 | . . . 1 Misfires 1 | . . . 1 Targeting Errors 3 | . . . 3 Overload Shots . | . . . . Overflow Damage 50 | . 1 . 49 Projectiles 21 | . 1 . 20 Explosions 29 | . . . 29 Melee . | . . . . Knockbacks . | . . . . Impact . | . . . . Kinetic . | . . . . Secondary . | . . . . Self-Inflicted Damage 287 | . . . 287 Shots 9 | . . . 9 Rammed . | . . . . Targets Rammed . | . . . . Kicked . | . . . . Crushed . | . . . . Highest Temperature 524 | 6 524 45 261 Average Temperature 84 | 3 186 26 56 Received Heat Transfer 252 | . 24 . 228 Effects 7 | . 7 . . Shutdowns 1 | . 1 . . Energy Bleed 1 | . 1 . . Interference 1 | . 1 . . Short Circuit 2 | . 2 . . Damage (minor) 1 | . 1 . . Damage (core) 1 | . 1 . . Siege Activations . | . . . . Robots Corrupted . | . . . . Combat Hostiles . | . . . . Parts Fried 6 | . . . 6 Impact Corruptions . | . . . . Robots Melted 1 | . . . 1 Combat Hostiles 1 | . . . 1 Parts Melted 3 | . 1 . 2 Heat Transferred 1691 | . 444 37 1210 Parts Sabotaged . | . . . . Parts Stolen . | . . . . Parts Stripped . | . . . . Power Chain Reactions . | . . . . Missiles Intercepted . | . . . . Alert | -11 -10 -10 -9 ------- Run | Scr Mat Min Mat Peak Influence 688 | 10 110 5 688 Initial 6 | . 6 . 1 Average 213 | 6 39 5 306 Maximum Alert Level 2 | . . . 2 Low Security (%) 55 | 100 100 100 33 Level 1 27 | . . . 40 Level 2 17 | . . . 25 Level 3 . | . . . . Level 4 . | . . . . Level 5 . | . . . . High Security . | . . . . Max Security . | . . . . Squads Dispatched 6 | . 1 . 5 Investigation 6 | . 1 . 5 Extermination . | . . . . Reinforcement . | . . . . Assault . | . . . . Garrison . | . . . . Intercept . | . . . . Construction Impeded . | . . . . Haulers Reinforced . | . . . . Stealth | -11 -10 -10 -9 --------- Run | Scr Mat Min Mat Distress Signals 2 | . 1 . 1 Communications Jammed . | . . . . Distress Signals . | . . . . Times Spotted 42 | . 7 . 35 Peak Tracking Total 5 | . 3 . 5 Tactical Retreats 1 | . . . 1 Traps | -11 -10 -10 -9 ------- Run | Scr Mat Min Mat Traps Triggered 4 | . 3 . 1 Indirectly . | . . . . Trap Hack Attempts . | . . . . Triggered . | . . . . Disarmed . | . . . . Reprogrammed . | . . . . Reused . | . . . . Traps Extracted . | . . . . Installed . | . . . . Triggered . | . . . . Machines | -11 -10 -10 -9 ---------- Run | Scr Mat Min Mat Machines Disabled 7 | . 1 . 6 Max in Single Turn 2 | . 1 . 2 Machines Sabotaged . | . . . . Garrisons Compromised . | . . . . Overloaded Fab Kills . | . . . . Fab Network Shutdowns . | . . . . Hacking | -11 -10 -10 -9 --------- Run | Scr Mat Min Mat Machines Accessed 11 | . 2 . 9 Terminals 9 | . 2 . 7 Fabricators . | . . . . Repair Stations . | . . . . Recycling Units . | . . . . Scanalyzers 2 | . . . 2 Garrison Access . | . . . . Total Hacks 40 | . 7 . 33 Successful 26 | . 4 . 22 Failed 14 | . 3 . 11 Catastrophic . | . . . . Database Lockouts . | . . . . Manual . | . . . . Terminals 28 | . 7 . 21 Fabricators . | . . . . Repair Stations . | . . . . Recycling Units . | . . . . Scanalyzers 12 | . . . 12 Garrison Access . | . . . . Terminal Hacks 15 | . 4 . 11 Prototype ID Bank 4 | . 1 . 3 Scanalyzer Index 1 | . . . 1 Alert Level 2 | . . . 2 Unreport Threat 1 | . . . 1 Locate Traps 2 | . 2 . . Reinforcement Status 2 | . . . 2 Hauler Manifests 2 | . 1 . 1 Registered Components 1 | . . . 1 Fabricator Hacks . | . . . . Repair Station Hacks . | . . . . Recycling Unit Hacks . | . . . . Scanalyzer 11 | . . . 11 Insert Component 6 | . . . 6 Analyze 5 | . . . 5 Garrison Access Hacks . | . . . . Unauthorized Hacks . | . . . . Terminals . | . . . . Fabricators . | . . . . Repair Stations . | . . . . Recycling Units . | . . . . Scanalyzers . | . . . . Garrison Access . | . . . . Data Cores Recovered 1 | . . . 1 Used 1 | . . . 1 Hacking Detections 9 | . 1 . 8 Full Trace Events 5 | . . . 5 Feedback Events 2 | . . . 2 Corruption 2 | . . . 2 Feedback Blocked . | . . . . Robot Schematics Acquired . | . . . . Robots Built . | . . . . Matter . | . . . . Time . | . . . . Total Robot Build Rating . | . . . . Part Schematics Acquired 4 | . . . 4 Parts Built . | . . . . Matter . | . . . . Time . | . . . . Total Part Build Rating . | . . . . Parts Repaired . | . . . . Time . | . . . . Parts Recycled . | . . . . Recycled Matter . | . . . . Retrieved Matter . | . . . . Retrieved Components . | . . . . Parts Scanalyzed 5 | . . . 5 Part Schematics Acquired 4 | . . . 4 Parts Damaged . | . . . . Bothacking | -11 -10 -10 -9 ------------ Run | Scr Mat Min Mat Used RIF Installer . | . . . . Robots Hacked . | . . . . Non-combat . | . . . . Combat . | . . . . Robot Hacks Applied . | . . . . Relay Couplers Released . | . . . . Robots Rewired . | . . . . Allies Hacked . | . . . . Hacks Repelled . | . . . . Allies | -11 -10 -10 -9 -------- Run | Scr Mat Min Mat Total Allies . | . . . . Largest Group . | . . . . Highest-Rated Group . | . . . . Highest-Rated Ally . | . . . . Total Orders . | . . . . Ally Attacks . | . . . . Total Damage . | . . . . Kills . | . . . . Allies Corrupted . | . . . . Allies Melted . | . . . . Intel | -11 -10 -10 -9 ------- Run | Scr Mat Min Mat Robot Analysis Total . | . . . . Derelict Logs Recovered . | . . . . Drone Launches . | . . . . Drone Recoveries . | . . . . Exploration | -11 -10 -10 -9 ------------- Run | Scr Mat Min Mat Turns Passed 1733 | 63 413 109 1148 Spaces Moved 1450 | 34 407 107 902 Core 7 | 7 . . . Treads . | . . . . Legs . | . . . . Wheels 716 | 27 407 107 175 Hover . | . . . . Flight 727 | . . . 727 Fastest Speed 29 | 50 80 80 29 Average Speed 57 | 83 80 80 43 Slowest Speed 175 | 100 80 80 175 Overloaded Moves . | . . . . Propulsion Burnouts . | . . . . Robots Hopped . | . . . . Cave-ins Triggered 1 | . . . 1 Exploration Rate (%) 37 | 3 49 19 78 Regions Visited 3 Branch Regions 1 Pre-discovered Areas . | . . . . Known Exits Taken . | . . . . Unknown Exits Taken 3 | 1 1 1 . Scrap Searched . | . . . . Spaces Dug . | . . . . Terrain Destroyed 369 | . . . 369 Melee . | . . . . Projectile . | . . . . AOE 369 | . . . 369 Terrain Rammed . | . . . . Walls Destroyed . | . . . . Machines Disabled . | . . . . Actions | -11 -10 -10 -9 --------- Run | Scr Mat Min Mat Total 2210 | 65 476 129 1540 Wait 506 | 13 14 15 464 Move 1447 | 33 406 106 902 Hop . | . . . . Pick Up 49 | 8 13 2 26 Fast Attach . | . . . . Attach 46 | 7 10 2 27 Detach 28 | 2 8 2 16 Swap . | . . . . Drop 27 | . 11 1 15 Fire 107 | 2 14 1 90 Melee . | . . . . Ram . | . . . . Kick . | . . . . Crush . | . . . . Escape Stasis . | . . . . Rewire . | . . . . Trap . | . . . . Miscellaneous . | . . . . Route ------- -11/Scrapyard -10/Materials (discovered 2 exits: *Mat / [*Min]) -10/Mines -9/Materials (discovered 3 exits: [*Mat] / [*Min x2]) History --------- Turn | Location | Event 7 | -11/Scrapyard | Discovered new exit (range 16) 64 | -11/Scrapyard | Entered Materials 178 | -10/Materials | Discovered new exit (range 10) 313 | -10/Materials | Build established: Mutant 335 | -10/Materials | Discovered new exit (range 16) 477 | -10/Materials | Entered Mines 512 | -10/Mines | Discovered new exit (range 5) 551 | -10/Mines | Received a Rocket Launcher from a helpful Derelict 586 | -10/Mines | Entered Materials 586 | -9/Materials | Evolved 2 slots: Propulsion x1, Utility x1 675 | -9/Materials | Discovered new exit (range 7) 1066 | -9/Materials | Build established: Sprinter 1090 | -9/Materials | Discovered new exit (range 14) 1129 | -9/Materials | Crushed by falling debris 1129 | -9/Materials | Core integrity fell below 50% 1337 | -9/Materials | Core integrity fell below 20% 1416 | -9/Materials | Destroyed 9 combat bots 1544 | -9/Materials | Discovered new exit (range 6) 1734 | -9/Materials | Destroyed by G-34 Mercenary with Small Laser Last Messages --------------- Acquired Heat Sink. R-06 Scavenger destroyed. A-02 Transporter destroyed. U-05 Engineer lays Concrete. K-01 Serf collects debris. U-05 Engineer lays Concrete. K-01 Serf collects debris. U-05 Engineer lays Concrete. K-01 Serf collects debris. U-05 Engineer lays Concrete. Triggered Alarm Trap. An alarm sounds. ALERT: Alarm triggered, dispatching investigation squad. Dropped Lrg. Battery. System corrupted: Energy discharge (-112). Dropped Cld. Ion Engine. Acquired Com. Battery. Acquired Cld. Ion Engine. System corrupted: Heat flow error (+174). System corrupted: Matter fused (-5). Map ----- +----------------------------------------------------+ | ??# """ # #??????????? | | ??# # < #??????????? | | ??# "S # #??????????? | | ??# """ # #??????????? | | ### "" ## #???????????? | | ## #?# #########????? | | # ##+####### # #????? | | = *%= + = #????? | | [=== # * ! #????? | | ] * %*! #########????? | | % %#############?????? | | # ]] # #?????? | | ## + #?????? | | ## # #?????? | | ## # #?????? | | [### ### # #?????? | | #?# #?# # #?????? | | ###?#+#?# *=# #?????? | | ????????#*%*####+####+###?????? | | ????????#!* #??# #??# #???????? | | ???????# ### #### ##??????? | | ???????# #####??? | | ???????+ ! **#??? | | ???????# **#??? | | ???????# #######t [[#??? | | ???????######??????# @[#??? | | ???????????????????# !#??? | | ???????????????????# !!#??? | | ???????????????????# #####??? | | ??????????????????# g ??????? | | ??????????????????# ??????? | | ????????????????? ??????? | | #???????????????### ??????? | | #?????????????????# ??????? | | #?????????????????###+###?????? | | ??????????????????????????????? | | ??????????????????????????????? | | ??????????????????????????????? | | ??????????????????????????????? | | ??????????????????????????????? | | ??????????????????????????????? | | ??????????????????????????????? | | ??????????????????????????????? | | ??????????????????????????????? | | ??????????????????????????????? | | ??????????????????????????????? | | ??????????????????????????????? | | ??????????????????????????????? | | ??????????????????????????????? | | ??????????????????????????????? | +----------------------------------------------------+ Best States ------------- Heat Dissipation 38 Energy Generation 14 Energy Capacity 580 Matter Stores 300 Matter Capacity 300 Sight Range 16 Terrain Scan Density 10 Additional Mass Support 6 Evasion (%) 64 Item Schematics ----------------- Imp. Flight Unit | -9/Materials | Scanalyzed Particle Cannon | -9/Materials | Scanalyzed Cld. Ion Engine | -9/Materials | Scanalyzed Mni. Grenade Launcher | -9/Materials | Scanalyzed Robot Schematics ------------------ None Fabricated ------------ Nothing Alien Tech Used ----------------- None Achievements -------------- Maybe Next Time I'll Detach My Launcher Unlikely Earthworm Challenges ------------ None Game ------ Seed NullMobileCloak Manual? 0 Play Time 00:35:58 Cumulative 25.2 hours Start 2020.12.27 @ 15:06:42 End 2020.12.27 @ 15:52:14 Sessions 1 Manual Loads 0 Difficulty Rogue Special Mode None Game No. 32 Rogue 32 Adventurer 0 Explorer 0 Win Type - Total 0 Types 0/0/0/0/0/0/0/0/0 Lore% 10 Gallery% 16 Achievement% 15 Wizard Run 0 Options --------- ASCII 0 Keyboard 0 Movement Mouse Keybinds 0 Fullscreen 1 Font 18/SmallcapsGlow Map View 76x50 Tactical HUD 0 Map Filters NONE Filters NONE Steam 1 RUN: b22e0af8-0a88-441a-80ff-6861e2e2035e